fUST/lending_fUST_20241121
["ID","MTS","AMOUNT","RATE_DAILY","PERIOD"]
[342762761,1732119054942,-500.0,0.00025203,2]
[342762762,1732119054952,-500.0,0.00025203,2]
[342762763,1732119054962,-500.0,0.00025203,2]
[342762764,1732119054972,-500.0,0.00025203,2]
[342762765,1732119054983,-1402.4,0.00025203,2]
[342762766,1732119054992,-515.63,0.00025203,2]
[342762767,1732119055002,-500.0,0.00025203,2]
[342762768,1732119055013,-771.88,0.00025203,2]
[342762769,1732119055023,-1712.23,0.00025203,2]
[342762770,1732119055033,-500.0,0.00025204,2]
[342762771,1732119055043,-500.0,0.00025204,2]
[342762772,1732119055053,-200.0,0.00025204,2]
[342762773,1732119055062,-500.0,0.00025204,2]
[342762774,1732119055071,-500.0,0.00025204,2]
[342762775,1732119055081,-500.0,0.00025204,2]
[342762776,1732119055090,-715.1,0.00025204,2]
[342762777,1732119055099,-535.74,0.00025204,2]
[342762778,1732119055109,-684.43,0.00025204,2]
[342762779,1732119055118,-1376.81,0.00025204,2]
[342762780,1732119055128,-500.0,0.00025204,2]
[342762781,1732119055138,-936.96,0.00025204,2]
[342762782,1732119055147,-500.0,0.00025204,2]
[342762783,1732119055157,-2637.14,0.00025204,2]
[342762784,1732119055167,-829.25,0.00025204,2]
[342762785,1732119055176,-509.41,0.00025204,2]
[342762786,1732119055186,-672.63,0.00025204,2]
[342762787,1732119055195,-7034.76,0.00025205,2]
[342762788,1732119055205,-1167.56,0.00025205,2]
[342762789,1732119055214,-2386.86,0.00025205,2]
[342762790,1732119055224,-540.69,0.00025205,2]
[342762791,1732119055235,-796.62,0.00025205,2]
[342762792,1732119055245,-2396.96,0.00025205,2]
[342762793,1732119055255,-500.0,0.00025205,2]
[342762794,1732119055265,-500.0,0.00025205,2]
[342762795,1732119055274,-1074.95,0.00025205,2]
[342762796,1732119055284,-500.0,0.00025205,2]
[342762797,1732119055293,-500.0,0.00025305,7]
[342762798,1732119055303,-4140.21,0.00025476,2]
[342762799,1732119055313,-696.54,0.00025476,2]
[342762800,1732119055322,-2107.99,0.00025476,2]
[342762801,1732119055331,-500.0,0.00025477,2]
[342762802,1732119055341,-500.0,0.00025477,2]
[342762803,1732119055351,-500.0,0.00025477,2]
[342762804,1732119055361,-500.0,0.00025477,2]
[342762805,1732119055370,-695.65,0.00025477,2]
[342762806,1732119055380,-500.0,0.00025477,2]
[342762807,1732119055389,-360.56661864,0.00025477,2]
[342762808,1732119055399,-500.0,0.00025477,2]
[342762809,1732119055408,-500.0,0.00025477,2]
[342762810,1732119055418,-287.11123446,0.00025477,2]
[342762811,1732119055427,-500.0,0.00025477,2]
[342762812,1732119055436,-181.7,0.00025477,2]
[342762813,1732119055446,-1402.4,0.00025477,2]
[342762814,1732119055456,-515.63,0.00025477,2]
[342762815,1732119055468,-174.78,0.00025477,2]
[342762816,1732119055478,-771.88,0.00025477,2]
[342762817,1732119055489,-1712.23,0.00025477,2]
[342762818,1732119055499,-236.0,0.00025478,2]
[342762819,1732119055508,-200.0,0.00025478,2]
[342762820,1732119055518,-179.58055834,0.00025478,2]
[342762821,1732119055527,-500.0,0.00025478,2]
[342762822,1732119055538,-500.0,0.00025478,2]
[342762823,1732119055547,-715.1,0.00025478,2]
[342762824,1732119055556,-535.74,0.00025478,2]
[342762825,1732119055566,-684.43,0.00025478,2]
[342762826,1732119055576,-1376.81,0.00025478,2]
[342762827,1732119055585,-500.0,0.00025478,2]
[342762828,1732119055594,-936.96,0.00025478,2]
[342762829,1732119055604,-500.0,0.00025478,2]
[342762830,1732119055613,-2637.14,0.00025478,2]
[342762831,1732119055623,-829.25,0.00025478,2]
[342762832,1732119055634,-509.41,0.00025478,2]
[342762833,1732119055643,-672.63,0.00025478,2]
[342762834,1732119055653,-7034.76,0.00025479,2]
[342762835,1732119055662,-1167.56,0.00025479,2]
[342762836,1732119055672,-2386.86,0.00025479,2]
[342762837,1732119055681,-540.69,0.00025479,2]
[342762838,1732119055691,-796.62,0.00025479,2]
[342762839,1732119055700,-2396.96,0.00025479,2]
[342762840,1732119055709,-606.17,0.00025479,2]
[342762841,1732119055719,-500.0,0.00025479,2]
[342762842,1732119055729,-1074.95,0.00025479,2]
[342762843,1732119055739,-500.0,0.00025479,2]
[342762844,1732119055749,-10034.76,0.000255,14]
[342762845,1732119055758,-171.815122,0.00025623,2]
[342762846,1732119055768,-415.268869,0.00025623,2]
[342762847,1732119055777,-352.645274,0.00025623,2]
[342762848,1732119055787,-671.187499,0.00025623,2]
[342762849,1732119055796,-1147.186161,0.00025623,2]
[342762850,1732119055806,-702.968803,0.00025623,2]
[342762851,1732119055815,-570.889677,0.00025623,2]
[342762852,1732119055825,-172.612125,0.00025623,2]
[342762853,1732119055834,-308.105257,0.00025623,2]
[342762854,1732119055844,-323.726825,0.00025623,2]
[342762855,1732119055853,-184.756842,0.00025623,2]
[342762856,1732119055863,-3546.03,0.000257,14]
[342762857,1732119055873,-150.244515,0.000257,2]
[342762858,1732119055882,-4140.21,0.0002575,2]
[342762859,1732119055892,-696.54,0.0002575,2]
[342762860,1732119055901,-2107.99,0.0002575,2]
[342762861,1732119055911,-500.0,0.00025751,2]
[342762862,1732119055921,-500.0,0.00025751,2]
[342762863,1732119055930,-500.0,0.00025751,2]
[342762864,1732119055939,-695.65,0.00025751,2]
[342762865,1732119055949,-500.0,0.00025751,2]
[342762866,1732119055959,-500.0,0.00025751,2]
[342762867,1732119055969,-500.0,0.00025751,2]
[342762868,1732119055979,-500.0,0.00025751,2]
[342762869,1732119055991,-1402.4,0.00025751,2]
[342762870,1732119056002,-515.63,0.00025751,2]
[342762871,1732119056012,-771.88,0.00025751,2]
[342762872,1732119056022,-1712.23,0.00025751,2]
[342762873,1732119056031,-500.0,0.00025752,2]
[342762874,1732119056041,-500.0,0.00025752,2]
[342762875,1732119056053,-715.1,0.00025752,2]
[342762876,1732119056062,-535.74,0.00025752,2]
[342762877,1732119056072,-684.43,0.00025752,2]
[342762878,1732119056082,-1376.81,0.00025752,2]
[342762879,1732119056091,-500.0,0.00025752,2]
[342762880,1732119056101,-936.96,0.00025752,2]
[342762881,1732119056110,-500.0,0.00025752,2]
[342762882,1732119056119,-2637.14,0.00025752,2]
[342762883,1732119056129,-829.25,0.00025752,2]
[342762884,1732119056138,-509.41,0.00025752,2]
[342762885,1732119056147,-672.63,0.00025752,2]
[342762886,1732119056157,-7034.76,0.00025753,2]
[342762887,1732119056166,-1167.56,0.00025753,2]
[342762888,1732119056176,-2386.86,0.00025753,2]
[342762889,1732119056186,-540.69,0.00025753,2]
[342762890,1732119056196,-796.62,0.00025753,2]
[342762891,1732119056205,-2396.96,0.00025753,2]
[342762892,1732119056214,-500.0,0.00025753,2]
[342762893,1732119056223,-1074.95,0.00025753,2]
[342762894,1732119056235,-347.41910069,0.00025753,2]
[342762895,1732119056252,-207.44520227,0.00025804,2]
[342762896,1732119056262,-415.268869,0.00025944,2]
[342762897,1732119056271,-352.645274,0.00025944,2]
[342762898,1732119056280,-671.187499,0.00025944,2]
[342762899,1732119056290,-1147.186161,0.00025944,2]
[342762900,1732119056300,-702.968803,0.00025944,2]
[342762901,1732119056373,-570.889677,0.00025944,2]
[342762902,1732119056389,-308.105257,0.00025944,2]
[342762903,1732119056399,-323.726825,0.00025944,2]
[342762904,1732119056409,-184.756842,0.00025944,2]
[342762905,1732119056419,-4140.21,0.00026024,2]
[342762906,1732119056429,-696.54,0.00026024,2]
[342762907,1732119056439,-2107.99,0.00026024,2]
[342762908,1732119056452,-500.0,0.00026025,2]
[342762909,1732119056462,-500.0,0.00026025,2]
[342762910,1732119056473,-500.0,0.00026025,2]
[342762911,1732119056485,-695.65,0.00026025,2]
[342762912,1732119056494,-500.0,0.00026025,2]
[342762913,1732119056504,-500.0,0.00026025,2]
[342762914,1732119056514,-500.0,0.00026025,2]
[342762915,1732119056524,-500.0,0.00026025,2]
[342762916,1732119056535,-1402.4,0.00026025,2]
[342762917,1732119056546,-515.63,0.00026025,2]
[342762918,1732119056556,-771.88,0.00026025,2]
[342762919,1732119056566,-1712.23,0.00026025,2]
[342762920,1732119056576,-500.0,0.00026026,2]
[342762921,1732119056586,-500.0,0.00026026,2]
[342762922,1732119056595,-715.1,0.00026026,2]
[342762923,1732119056605,-535.74,0.00026026,2]
[342762924,1732119056615,-684.43,0.00026026,2]
[342762925,1732119056625,-1376.81,0.00026026,2]
[342762926,1732119056635,-500.0,0.00026026,2]
[342762927,1732119056645,-936.96,0.00026026,2]
[342762928,1732119056655,-500.0,0.00026026,2]
[342762929,1732119056664,-2637.14,0.00026026,2]
[342762930,1732119056674,-829.25,0.00026026,2]
[342762931,1732119056683,-509.41,0.00026026,2]
[342762932,1732119056693,-672.63,0.00026026,2]
[342762933,1732119056703,-7034.76,0.00026027,2]
[342762934,1732119056713,-1167.56,0.00026027,2]
[342762935,1732119056722,-2386.86,0.00026027,2]
[342762936,1732119056733,-540.69,0.00026027,2]
[342762937,1732119056742,-796.62,0.00026027,2]
[342762938,1732119056752,-2396.96,0.00026027,2]
[342762939,1732119056762,-441.67,0.00026027,2]
[342762940,1732119056773,-1074.95,0.00026027,2]
[342762941,1732119056784,-507.71596,0.0002626,15]
[342762942,1732119056795,-415.268869,0.00026264,2]
[342762943,1732119056805,-352.645274,0.00026264,2]
[342762944,1732119056815,-671.187499,0.00026264,2]
[342762945,1732119056825,-1147.186161,0.00026264,2]
[342762946,1732119056835,-702.968803,0.00026264,2]
[342762947,1732119056845,-570.889677,0.00026264,2]
[342762948,1732119056855,-308.105257,0.00026264,2]
[342762949,1732119056864,-323.726825,0.00026264,2]
[342762950,1732119056874,-184.756842,0.00026264,2]
[342762951,1732119056884,-500.184,0.00026274,2]
[342762952,1732119056893,-3200.0,0.00026274,2]
[342762953,1732119056903,-151.089,0.00026274,2]
[342762954,1732119056913,-4140.21,0.00026298,2]
[342762955,1732119056922,-696.54,0.00026298,2]
[342762956,1732119056933,-2107.99,0.00026298,2]
[342762957,1732119056942,-500.0,0.00026299,2]
[342762958,1732119056952,-500.0,0.00026299,2]
[342762959,1732119056962,-500.0,0.00026299,2]
[342762960,1732119056971,-695.65,0.00026299,2]
[342762961,1732119056984,-500.0,0.00026299,2]
[342762962,1732119056994,-500.0,0.00026299,2]
[342762963,1732119057005,-500.0,0.00026299,2]
[342762964,1732119057015,-500.0,0.00026299,2]
[342762965,1732119057025,-1402.4,0.00026299,2]
[342762966,1732119057035,-515.63,0.00026299,2]
[342762967,1732119057044,-771.88,0.00026299,2]
[342762968,1732119057054,-1712.23,0.00026299,2]
[342762969,1732119057064,-500.0,0.000263,2]
[342762970,1732119057074,-500.0,0.000263,2]
[342762971,1732119057083,-715.1,0.000263,2]
[342762972,1732119057092,-535.74,0.000263,2]
[342762973,1732119057102,-684.43,0.000263,2]
[342762974,1732119057111,-1376.81,0.000263,2]
[342762975,1732119057120,-500.0,0.000263,2]
[342762976,1732119057129,-936.96,0.000263,2]
[342762977,1732119057139,-500.0,0.000263,2]
[342762978,1732119057149,-2637.14,0.000263,2]
[342762979,1732119057158,-829.25,0.000263,2]
[342762980,1732119057168,-509.41,0.000263,2]
[342762981,1732119057178,-672.63,0.000263,2]
[342762982,1732119057187,-7034.76,0.00026301,2]
[342762983,1732119057197,-1167.56,0.00026301,2]
[342762984,1732119057206,-2386.86,0.00026301,2]
[342762985,1732119057216,-540.69,0.00026301,2]
[342762986,1732119057226,-796.62,0.00026301,2]
[342762987,1732119057239,-2396.96,0.00026301,2]
[342762988,1732119057248,-1074.95,0.00026301,2]
[342762989,1732119057258,-2500.0,0.00026548,3]
[342762990,1732119057267,-2500.0,0.00026556,3]
[342762991,1732119057276,-2500.0,0.00026565,3]
[342762992,1732119057286,-4140.21,0.00026572,2]
[342762993,1732119057296,-696.54,0.00026572,2]
[342762994,1732119057305,-2107.99,0.00026572,2]
[342762995,1732119057314,-500.0,0.00026573,2]
[342762996,1732119057324,-500.0,0.00026573,2]
[342762997,1732119057333,-500.0,0.00026573,2]
[342762998,1732119057343,-695.65,0.00026573,2]
[342762999,1732119057353,-500.0,0.00026573,2]
[342763000,1732119057363,-500.0,0.00026573,2]
[342763001,1732119057373,-500.0,0.00026573,2]
[342763002,1732119057382,-500.0,0.00026573,2]
[342763003,1732119057393,-1402.4,0.00026573,2]
[342763004,1732119057403,-515.63,0.00026573,2]
[342763005,1732119057412,-771.88,0.00026573,2]
[342763006,1732119057422,-1712.23,0.00026573,2]
[342763007,1732119057431,-2500.0,0.00026574,3]
[342763008,1732119057440,-715.1,0.00026574,2]
[342763009,1732119057450,-535.74,0.00026574,2]
[342763010,1732119057463,-684.43,0.00026574,2]
[342763011,1732119057472,-1376.81,0.00026574,2]
[342763012,1732119057485,-500.0,0.00026574,2]
[342763013,1732119057494,-936.96,0.00026574,2]
[342763014,1732119057504,-500.0,0.00026574,2]
[342763015,1732119057513,-2637.14,0.00026574,2]
[342763016,1732119057523,-829.25,0.00026574,2]
[342763017,1732119057532,-509.41,0.00026574,2]
[342763018,1732119057542,-672.63,0.00026574,2]
[342763019,1732119057551,-7034.76,0.00026575,2]
[342763020,1732119057561,-1167.56,0.00026575,2]
[342763021,1732119057570,-2386.86,0.00026575,2]
[342763022,1732119057580,-540.69,0.00026575,2]
[342763023,1732119057590,-796.62,0.00026575,2]
[342763024,1732119057600,-2396.96,0.00026575,2]
[342763025,1732119057610,-1074.95,0.00026575,2]
[342763026,1732119057619,-2500.0,0.00026583,3]
[342763027,1732119057628,-415.268869,0.00026584,2]
[342763028,1732119057638,-352.645274,0.00026584,2]
[342763029,1732119057647,-671.187499,0.00026584,2]
[342763030,1732119057657,-1147.186161,0.00026584,2]
[342763031,1732119057667,-702.968803,0.00026584,2]
[342763032,1732119057676,-570.889677,0.00026584,2]
[342763033,1732119057685,-308.105257,0.00026584,2]
[342763034,1732119057695,-323.726825,0.00026584,2]
[342763035,1732119057704,-184.756842,0.00026584,2]
[342763036,1732119057714,-207.44520227,0.00026801,2]
[342763037,1732119057724,-4140.21,0.00026846,2]
[342763038,1732119057736,-696.54,0.00026846,2]
[342763039,1732119057746,-2107.99,0.00026846,2]
[342763040,1732119057756,-500.0,0.00026847,2]
[342763041,1732119057766,-500.0,0.00026847,2]
[342763042,1732119057775,-500.0,0.00026847,2]
[342763043,1732119057786,-695.65,0.00026847,2]
[342763044,1732119057806,-500.0,0.00026847,2]
[342763045,1732119057824,-500.0,0.00026847,2]
[342763046,1732119057834,-500.0,0.00026847,2]
[342763047,1732119057843,-567.73422485,0.00026847,2]
[342763048,1732119057853,-1402.4,0.00026847,2]
[342763049,1732119057863,-515.63,0.00026847,2]
[342763050,1732119057872,-771.88,0.00026847,2]
[342763051,1732119057881,-1712.23,0.00026847,2]
[342763052,1732119057891,-715.1,0.00026848,2]
[342763053,1732119057901,-535.74,0.00026848,2]
[342763054,1732119057911,-684.43,0.00026848,2]
[342763055,1732119057993,-1376.81,0.00026848,2]
[342763056,1732119058003,-613.63137608,0.00026848,2]
[342763057,1732119058013,-936.96,0.00026848,2]
[342763058,1732119058023,-500.0,0.00026848,2]
[342763059,1732119058033,-2637.14,0.00026848,2]
[342763060,1732119058043,-829.25,0.00026848,2]
[342763061,1732119058052,-509.41,0.00026848,2]
[342763062,1732119058062,-672.63,0.00026848,2]
[342763063,1732119058073,-7034.76,0.00026849,2]
[342763064,1732119058083,-1167.56,0.00026849,2]
[342763065,1732119058093,-2386.86,0.00026849,2]
[342763066,1732119058102,-540.69,0.00026849,2]
[342763067,1732119058112,-796.62,0.00026849,2]
[342763068,1732119058122,-2396.96,0.00026849,2]
[342763069,1732119058132,-1074.95,0.00026849,2]
[342763070,1732119058141,-171.815122,0.00026904,2]
[342763071,1732119058151,-415.268869,0.00026904,2]
[342763072,1732119058161,-352.645274,0.00026904,2]
[342763073,1732119058170,-671.187499,0.00026904,2]
[342763074,1732119058180,-1147.186161,0.00026904,2]
[342763075,1732119058189,-702.968803,0.00026904,2]
[342763076,1732119058199,-570.889677,0.00026904,2]
[342763077,1732119058209,-308.105257,0.00026904,2]
[342763078,1732119058219,-323.726825,0.00026904,2]
[342763079,1732119058228,-184.756842,0.00026904,2]
[342763080,1732119058240,-500.0,0.00026949,7]
[342763081,1732119058249,-4140.21,0.0002712,2]
[342763082,1732119058259,-696.54,0.0002712,2]
[342763083,1732119058269,-2107.99,0.0002712,2]
[342763084,1732119058278,-500.0,0.00027121,2]
[342763085,1732119058288,-500.0,0.00027121,2]
[342763086,1732119058298,-500.0,0.00027121,2]
[342763087,1732119058308,-695.65,0.00027121,2]
[342763088,1732119058318,-500.0,0.00027121,2]
[342763089,1732119058328,-500.0,0.00027121,2]
[342763090,1732119058338,-500.0,0.00027121,2]
[342763091,1732119058348,-1402.4,0.00027121,2]
[342763092,1732119058357,-515.63,0.00027121,2]
[342763093,1732119058366,-771.88,0.00027121,2]
[342763094,1732119058375,-1712.23,0.00027121,2]
[342763095,1732119058388,-715.1,0.00027122,2]
[342763096,1732119058398,-535.74,0.00027122,2]
[342763097,1732119058408,-684.43,0.00027122,2]
[342763098,1732119058417,-1376.81,0.00027122,2]
[342763099,1732119058426,-936.96,0.00027122,2]
[342763100,1732119058435,-500.0,0.00027122,2]
[342763101,1732119058445,-2637.14,0.00027122,2]
[342763102,1732119058459,-829.25,0.00027122,2]
[342763103,1732119058469,-509.41,0.00027122,2]
[342763104,1732119058478,-672.63,0.00027122,2]
[342763105,1732119058491,-7034.76,0.00027123,2]
[342763106,1732119058500,-1167.56,0.00027123,2]
[342763107,1732119058509,-2386.86,0.00027123,2]
[342763108,1732119058519,-540.69,0.00027123,2]
[342763109,1732119058528,-796.62,0.00027123,2]
[342763110,1732119058539,-2396.96,0.00027123,2]
[342763111,1732119058549,-1074.95,0.00027123,2]
[342763112,1732119058559,-4140.21,0.00027394,2]
[342763113,1732119058569,-696.54,0.00027394,2]
[342763114,1732119058579,-2107.99,0.00027394,2]
[342763115,1732119058589,-500.0,0.00027395,2]
[342763116,1732119058600,-500.0,0.00027395,2]
[342763117,1732119058612,-500.0,0.00027395,2]
[342763118,1732119058622,-500.0,0.00027395,2]
[342763119,1732119058632,-500.0,0.00027395,2]
[342763120,1732119058642,-500.0,0.00027395,2]
[342763121,1732119058651,-500.0,0.00027395,2]
[342763122,1732119058662,-500.0,0.00027395,2]
[342763123,1732119058672,-500.0,0.00027395,2]
[342763124,1732119058684,-500.0,0.00027395,2]
[342763125,1732119058694,-500.0,0.00027395,2]
[342763126,1732119058704,-500.0,0.00027395,2]
[342763127,1732119058714,-500.0,0.00027395,2]
[342763128,1732119058724,-500.0,0.00027395,2]
[342763129,1732119058733,-500.0,0.00027395,2]
[342763130,1732119058743,-500.0,0.00027395,2]
[342763131,1732119058753,-500.0,0.00027395,2]
[342763132,1732119058762,-500.0,0.00027395,2]
[342763133,1732119058772,-500.0,0.00027395,2]
[342763134,1732119058782,-500.0,0.00027395,2]
[342763135,1732119058792,-500.0,0.00027395,2]
[342763136,1732119058801,-1000.0,0.00027395,2]
[342763137,1732119058810,-500.0,0.00027395,2]
[342763138,1732119058820,-500.0,0.00027395,2]
[342763139,1732119058829,-500.0,0.00027395,2]
[342763140,1732119058838,-500.0,0.00027395,2]
[342763141,1732119058848,-500.0,0.00027395,2]
[342763142,1732119058858,-500.0,0.00027395,2]
[342763143,1732119058867,-500.0,0.00027395,2]
[342763144,1732119058876,-500.0,0.00027395,2]
[342763145,1732119058886,-500.0,0.00027395,2]
[342763146,1732119058895,-695.65,0.00027395,2]
[342763147,1732119058904,-393.37241865,0.00027395,2]
[342763148,1732119058914,-500.0,0.00027395,2]
[342763149,1732119058924,-500.0,0.00027395,2]
[342763150,1732119058933,-500.0,0.00027395,2]
[342763151,1732119058943,-500.0,0.00027395,2]
[342763152,1732119058953,-500.0,0.00027395,2]
[342763153,1732119058962,-509.21452759,0.00027395,2]
[342763154,1732119058972,-500.0,0.00027395,2]
[342763155,1732119058981,-500.0,0.00027395,2]
[342763156,1732119058993,-500.0,0.00027395,2]
[342763157,1732119059003,-500.0,0.00027395,2]
[342763158,1732119059012,-500.0,0.00027395,2]
[342763159,1732119059021,-500.0,0.00027395,2]
[342763160,1732119059031,-500.0,0.00027395,2]
[342763161,1732119059041,-552.61961707,0.00027395,2]
[342763162,1732119059051,-500.0,0.00027395,2]
[342763163,1732119059060,-500.0,0.00027395,2]
[342763164,1732119059070,-500.0,0.00027395,2]
[342763165,1732119059079,-500.0,0.00027395,2]
[342763166,1732119059088,-1402.4,0.00027395,2]
[342763167,1732119059098,-560.1,0.00027395,2]
[342763168,1732119059107,-515.63,0.00027395,2]
[342763169,1732119059117,-771.88,0.00027395,2]
[342763170,1732119059126,-500.0,0.00027395,2]
[342763171,1732119059136,-1712.23,0.00027395,2]
[342763172,1732119059146,-500.0,0.00027395,2]
[342763173,1732119059155,-715.1,0.00027396,2]
[342763174,1732119059165,-535.74,0.00027396,2]
[342763175,1732119059175,-684.43,0.00027396,2]
[342763176,1732119059184,-1376.81,0.00027396,2]
[342763177,1732119059193,-936.96,0.00027396,2]
[342763178,1732119059203,-500.0,0.00027396,2]
[342763179,1732119059212,-2637.14,0.00027396,2]
[342763180,1732119059222,-829.25,0.00027396,2]
[342763181,1732119059232,-509.41,0.00027396,2]
[342763182,1732119059242,-672.63,0.00027396,2]
[342763183,1732119059252,-7034.76,0.00027397,2]
[342763184,1732119059261,-1167.56,0.00027397,2]
[342763185,1732119059270,-2386.86,0.00027397,2]
[342763186,1732119059278,-540.69,0.00027397,2]
[342763187,1732119059288,-796.62,0.00027397,2]
[342763188,1732119059297,-2396.96,0.00027397,2]
[342763189,1732119059305,-1074.95,0.00027397,2]
[342763190,1732119059315,-4157.316934,0.00027397,120]
[342763191,1732119059324,-600.0,0.00027587,2]
[342763192,1732119059334,-4140.21,0.00027668,2]
[342763193,1732119059343,-696.54,0.00027668,2]
[342763194,1732119059352,-2107.99,0.00027668,2]
[342763195,1732119059418,-500.0,0.00027669,2]
[342763196,1732119059432,-500.0,0.00027669,2]
[342763197,1732119059442,-500.0,0.00027669,2]
[342763198,1732119059452,-500.0,0.00027669,2]
[342763199,1732119059465,-500.0,0.00027669,2]
[342763200,1732119059474,-500.0,0.00027669,2]
[342763201,1732119059485,-525.28,0.00027669,2]
[342763202,1732119059498,-500.0,0.00027669,2]
[342763203,1732119059507,-500.0,0.00027669,2]
[342763204,1732119059516,-500.0,0.00027669,2]
[342763205,1732119059525,-500.0,0.00027669,2]
[342763206,1732119059536,-500.0,0.00027669,2]
[342763207,1732119059546,-320.20898073,0.00027669,2]
[342763208,1732119059555,-500.0,0.00027669,2]
[342763209,1732119059565,-500.0,0.00027669,2]
[342763210,1732119059575,-500.0,0.00027669,2]
[342763211,1732119059584,-1000.0,0.00027669,2]
[342763212,1732119059593,-503.67101954,0.00027669,2]
[342763213,1732119059603,-500.0,0.00027669,2]
[342763214,1732119059612,-500.0,0.00027669,2]
[342763215,1732119059622,-500.0,0.00027669,2]
[342763216,1732119059632,-500.0,0.00027669,2]
[342763217,1732119059642,-500.0,0.00027669,2]
[342763218,1732119059652,-500.0,0.00027669,2]
[342763219,1732119059661,-695.65,0.00027669,2]
[342763220,1732119059671,-500.0,0.00027669,2]
[342763221,1732119059680,-158.44629662,0.00027669,2]
[342763222,1732119059690,-500.0,0.00027669,2]
[342763223,1732119059700,-500.0,0.00027669,2]
[342763224,1732119059709,-500.0,0.00027669,2]
[342763225,1732119059719,-500.0,0.00027669,2]
[342763226,1732119059728,-500.0,0.00027669,2]
[342763227,1732119059739,-500.0,0.00027669,2]
[342763228,1732119059749,-545.61836701,0.00027669,2]
[342763229,1732119059758,-500.0,0.00027669,2]
[342763230,1732119059768,-1402.4,0.00027669,2]
[342763231,1732119059777,-560.1,0.00027669,2]
[342763232,1732119059787,-515.63,0.00027669,2]
[342763233,1732119059799,-771.88,0.00027669,2]
[342763234,1732119059808,-500.0,0.00027669,2]
[342763235,1732119059818,-1712.23,0.00027669,2]
[342763236,1732119059827,-378.58,0.00027669,2]
[342763237,1732119059836,-715.1,0.0002767,2]
[342763238,1732119059845,-535.74,0.0002767,2]
[342763239,1732119059854,-684.43,0.0002767,2]
[342763240,1732119059863,-1376.81,0.0002767,2]
[342763241,1732119059873,-936.96,0.0002767,2]
[342763242,1732119059882,-500.0,0.0002767,2]
[342763243,1732119059892,-2637.14,0.0002767,2]
[342763244,1732119059903,-829.25,0.0002767,2]
[342763245,1732119059913,-509.41,0.0002767,2]
[342763246,1732119059923,-672.63,0.0002767,2]
[342763247,1732119059932,-7034.76,0.00027671,2]
[342763248,1732119059942,-1167.56,0.00027671,2]
[342763249,1732119059952,-2386.86,0.00027671,2]
[342763250,1732119059962,-540.69,0.00027671,2]
[342763251,1732119059971,-796.62,0.00027671,2]
[342763252,1732119059981,-2396.96,0.00027671,2]
[342763253,1732119059993,-1074.95,0.00027671,2]
[342763254,1732119060002,-207.44520227,0.00027798,2]
[342763255,1732119060011,-1166.79017246,0.00027874,2]
[342763256,1732119060021,-4140.21,0.00027942,2]
[342763257,1732119060030,-696.54,0.00027942,2]
[342763258,1732119060039,-2107.99,0.00027942,2]
[342763259,1732119060049,-500.0,0.00027943,2]
[342763260,1732119060059,-500.0,0.00027943,2]